bitfinex-derivatives/quotes_BTCF0:USTF0_20220102
["timestamp","ask_amount","ask_price","bid_price","bid_amount"]
[1641145050930,0.17303,47605.0,47597.0,0.016764]
[1641145051341,0.17303,47598.0,47597.0,0.009794]
[1641145051534,0.17303,47598.0,47586.0,0.14033567]
[1641145051535,0.25424,47598.0,47586.0,0.14033567]
[1641145051732,0.17303,47591.0,47586.0,0.14033567]
[1641145052934,0.001,47587.0,47586.0,0.14033567]
[1641145053132,0.08918,47587.0,47586.0,0.14033567]
[1641145053931,0.08918,47587.0,47586.0,0.32533567]
[1641145054132,0.08818,47587.0,47586.0,0.32533567]
[1641145055231,0.08918,47587.0,47586.0,0.14730567]
[1641145055835,0.08918,47587.0,47586.0,0.33530567]
[1641145056435,0.08818,47587.0,47586.0,0.33530567]
[1641145057837,0.08818,47587.0,47586.0,0.33730567]
[1641145058337,0.14033567,47594.0,47586.0,0.33730567]
[1641145058537,0.14033567,47594.0,47586.0,0.34924674]
[1641145058736,0.14033567,47594.0,47593.0,0.00697]
[1641145058939,0.14133567,47594.0,47588.0,0.00697]
[1641145059239,0.14033567,47594.0,47593.0,0.00697]
[1641145059839,0.14033567,47594.0,47593.0,0.18697]
[1641145060243,0.67052859,47599.0,47593.0,0.18697]
[1641145060439,0.67052859,47599.0,47596.0,0.00697]
[1641145060639,0.001,47597.0,47596.0,0.00697]
[1641145061039,0.001,47597.0,47593.0,0.18]
[1641145061239,0.17303,47596.0,47589.0,0.02101291]
[1641145061440,0.67052859,47599.0,47589.0,0.02101291]
[1641145061639,0.17303,47596.0,47594.0,0.00697]
[1641145062039,0.17303,47598.0,47589.0,0.20501291]
[1641145062841,0.14033567,47599.0,47589.0,0.20501291]
[1641145063040,0.14033567,47599.0,47594.0,0.00697]
[1641145063344,0.49749859,47599.0,47594.0,0.00697]
[1641145063539,0.49749859,47599.0,47598.0,0.00697]
[1641145063940,0.14033567,47599.0,47598.0,0.00697]
[1641145065541,0.14033567,47599.0,47592.0,0.02101181]
[1641145065738,0.14033567,47599.0,47594.0,0.00697]
[1641145065942,0.14033567,47599.0,47598.0,0.181]
[1641145066139,0.19336567,47599.0,47598.0,0.181]
[1641145066340,0.31336567,47599.0,47598.0,0.181]
[1641145066742,0.31336567,47599.0,47598.0,0.0001]
[1641145066939,0.31436567,47599.0,47598.0,0.0001]
[1641145067440,0.14033567,47599.0,47594.0,0.00697]
[1641145067641,0.14033567,47599.0,47598.0,0.00697]
[1641145067841,0.92561017,47599.0,47598.0,0.00697]
[1641145069243,0.73561017,47599.0,47598.0,0.00697]
[1641145069444,0.14033567,47599.0,47598.0,0.00697]
[1641145069743,0.22990003,47599.0,47598.0,0.00697]
[1641145069943,0.41590003,47599.0,47595.0,0.35289552]
[1641145070342,0.41590003,47599.0,47597.0,0.00697]
[1641145071242,0.22990003,47599.0,47594.0,0.35289552]
[1641145071644,0.22990003,47599.0,47598.0,0.18]
[1641145071843,0.41490003,47599.0,47598.0,0.20100828]
[1641145072244,0.32533567,47599.0,47598.0,0.02100828]
[1641145072443,0.32533567,47599.0,47598.0,0.20100828]
[1641145072643,0.32533567,47599.0,47598.0,0.02100828]
[1641145073246,0.14033567,47599.0,47598.0,0.02100828]
[1641145073745,0.14033567,47599.0,47596.0,0.37390535]
[1641145073944,0.32933567,47599.0,47598.0,1.0]
[1641145075045,0.14033567,47599.0,47598.0,1.0]
[1641145075446,0.31336567,47599.0,47598.0,1.0]
[1641145075648,0.14033567,47599.0,47598.0,1.00697]
[1641145075846,0.32633567,47599.0,47598.0,1.00697]
[1641145077246,0.14033567,47599.0,47598.0,1.00697]
[1641145077848,0.32633567,47599.0,47598.0,1.00697]
[1641145078448,0.32633567,47599.0,47598.0,1.0]
[1641145079250,0.14033567,47599.0,47598.0,1.0]
[1641145079851,0.32433567,47599.0,47598.0,1.0]
[1641145081150,0.14033567,47599.0,47598.0,1.0]
[1641145081752,0.31336567,47599.0,47598.0,1.0]
[1641145081952,0.49936567,47599.0,47598.0,1.0]
[1641145082356,1.93198567,47599.0,47598.0,1.0]
[1641145083356,0.31336567,47599.0,47598.0,1.0]
[1641145083852,0.50036567,47599.0,47598.0,1.0]
[1641145084252,0.32733567,47599.0,47598.0,1.0]
[1641145085154,0.14033567,47599.0,47598.0,1.0]
[1641145085355,0.14033567,47599.0,47598.0,1.00697]
[1641145085553,0.14033567,47599.0,47598.0,1.0]
[1641145085956,0.32633567,47599.0,47598.0,1.0]
[1641145086154,0.32633567,47599.0,47598.0,1.00697]
[1641145086757,0.32633567,47599.0,47598.0,1.0]
[1641145087155,0.32633567,47599.0,47598.0,1.00697]
[1641145087355,0.14033567,47599.0,47598.0,1.00697]
[1641145087555,0.14033567,47599.0,47598.0,1.0]
[1641145087955,0.49936567,47599.0,47598.0,1.0]
[1641145088657,0.58893449,47599.0,47598.0,1.0]
[1641145089257,0.41590449,47599.0,47598.0,1.0]
[1641145089557,0.22990449,47599.0,47598.0,1.0]
[1641145089957,0.41590449,47599.0,47598.0,1.0]
[1641145090159,0.41590449,47599.0,47598.0,1.00697]
[1641145090358,0.41590449,47599.0,47598.0,1.0]
[1641145090657,0.41590449,47599.0,47598.0,1.00697]
[1641145091358,0.22990449,47599.0,47598.0,1.0]
[1641145092059,0.41590449,47599.0,47598.0,1.0]
[1641145093259,0.22990449,47599.0,47598.0,1.0]
[1641145093760,0.40293449,47599.0,47598.0,1.0]
[1641145093960,0.41590449,47599.0,47598.0,1.0]
[1641145095359,0.22990449,47599.0,47598.0,1.0]
[1641145095559,0.40293449,47599.0,47598.0,1.0]
[1641145095962,0.41590449,47599.0,47598.0,1.0]
[1641145096159,0.41590449,47599.0,47598.0,1.00697]
[1641145096661,1.84830109,47599.0,47598.0,1.00697]
[1641145097461,1.66230109,47599.0,47598.0,1.00697]
[1641145098063,0.32633567,47599.0,47598.0,1.00697]
[1641145098563,0.32633567,47599.0,47598.0,1.0]
[1641145098764,0.41590449,47599.0,47598.0,1.0]
[1641145099564,0.22990449,47599.0,47598.0,1.0]
[1641145100063,0.41590449,47599.0,47598.0,1.0]
[1641145100664,1.84830109,47599.0,47598.0,1.0]
[1641145100864,1.84830109,47599.0,47598.0,1.00697]
[1641145101065,1.84830109,47599.0,47598.0,1.0]
[1641145101266,1.66230109,47599.0,47598.0,1.0]
[1641145101669,0.22990449,47599.0,47598.0,1.0]
[1641145102165,1.84830109,47599.0,47598.0,1.0]
[1641145102566,1.84930109,47599.0,47598.0,1.0]
[1641145103366,1.66330109,47599.0,47598.0,1.0]
[1641145103968,1.84930109,47599.0,47598.0,1.0]
[1641145105270,1.66330109,47599.0,47598.0,1.0]
[1641145106070,1.84830109,47599.0,47598.0,1.0]
[1641145106272,1.84830109,47599.0,47598.0,1.00697]
[1641145107575,1.66330109,47599.0,47598.0,1.00697]
[1641145108075,1.84930109,47599.0,47598.0,1.00697]
[1641145108477,1.84830109,47599.0,47598.0,1.00697]
[1641145108680,0.27556882,47599.0,47598.0,1.016764]
[1641145108877,0.27556882,47599.0,47598.0,1.17810839]
[1641145109376,0.08956882,47599.0,47598.0,1.17810839]
[1641145109775,6.882e-05,47599.0,47598.0,1.17810839]
[1641145109977,6.882e-05,47599.0,47598.0,1.37610839]
[1641145110176,1.3130306,47599.0,47598.0,1.37610839]
[1641145111376,1.31296178,47599.0,47598.0,1.17810839]
[1641145111977,1.31296178,47599.0,47598.0,1.37610839]
[1641145112378,1.31296178,47606.0,47598.0,2.20107057]
[1641145112579,0.59667653,47599.0,47598.0,2.19410057]
[1641145112779,0.59667653,47599.0,47598.0,2.38107057]
[1641145112980,1.31296178,47604.0,47598.0,2.14782592]
[1641145113180,1.31296178,47604.0,47603.0,0.00697]
[1641145113980,1.50396178,47604.0,47603.0,0.00697]
[1641145114584,0.191,47604.0,47603.0,0.00697]
[1641145114779,0.191,47604.0,47603.0,0.14730567]
[1641145114981,0.191,47604.0,47603.0,0.00697]
[1641145115380,0.06,47604.0,47600.0,0.35498496]
[1641145115581,0.06,47601.0,47600.0,0.35498496]
[1641145115981,0.248,47601.0,47600.0,0.35498496]
[1641145116182,0.188,47601.0,47600.0,0.59171753]
[1641145116483,0.368,47601.0,47600.0,0.59171753]
[1641145116882,0.50833567,47601.0,47600.0,0.59171753]
[1641145117387,0.32133567,47601.0,47600.0,0.59171753]
[1641145117785,0.14133567,47601.0,47598.0,1.0]
[1641145117984,0.001,47599.0,47598.0,1.0]
[1641145118184,0.181,47599.0,47598.0,1.0]
[1641145120088,0.189,47599.0,47598.0,1.0]
[1641145121390,0.001,47599.0,47598.0,1.0]
[1641145122002,0.367,47599.0,47598.0,1.0]
[1641145122589,0.187,47599.0,47598.0,1.0]
[1641145122991,0.367,47599.0,47598.0,1.0]
[1641145123398,0.181,47599.0,47598.0,1.0]
[1641145124197,0.187,47599.0,47598.0,1.0]
[1641145124599,0.367,47599.0,47598.0,1.0]
[1641145124802,0.187,47599.0,47598.0,1.0]
[1641145125502,0.001,47599.0,47598.0,1.0]
[1641145125702,0.09056664,47599.0,47598.0,1.0]
[1641145126101,0.27556664,47599.0,47598.0,1.0]
[1641145126301,0.27556664,47599.0,47593.0,0.59171753]
[1641145126502,0.181,47594.0,47593.0,0.59171753]
[1641145126803,0.24651,47594.0,47592.0,0.59171753]
[1641145127001,0.001,47593.0,47592.0,0.59171753]
[1641145128001,0.001,47593.0,47588.0,0.59171753]
[1641145128201,0.187,47593.0,47588.0,0.59171753]
[1641145128601,0.001,47589.0,47588.0,0.59171753]
[1641145128803,0.187,47593.0,47588.0,0.59171753]
[1641145129001,0.001,47589.0,47588.0,0.59171753]
[1641145129303,1.31475701,47589.0,47587.0,0.82496218]
[1641145129505,1.31375701,47589.0,47587.0,0.82496218]
[1641145130009,0.08956664,47588.0,47587.0,0.82496218]
[1641145132007,1.31375701,47589.0,47587.0,0.82496218]
[1641145132207,0.189,47588.0,47587.0,0.82496218]
[1641145133508,1.31375701,47589.0,47587.0,0.82496218]
[1641145133909,1.31375701,47590.0,47587.0,0.82496218]
[1641145134109,0.188,47589.0,47587.0,0.82496218]
[1641145135011,0.08956664,47588.0,47587.0,0.82496218]
[1641145136211,0.27856664,47588.0,47587.0,0.82496218]
[1641145136612,0.189,47588.0,47587.0,0.82496218]
[1641145137612,0.08956664,47588.0,47587.0,0.82496218]
[1641145138211,0.27756664,47588.0,47587.0,0.82496218]
[1641145138411,0.188,47588.0,47587.0,0.82496218]
[1641145139212,0.27756664,47588.0,47587.0,0.82496218]
[1641145139414,0.08956664,47588.0,47587.0,0.82496218]
[1641145140213,0.27856664,47588.0,47587.0,0.82496218]
[1641145140813,0.189,47588.0,47587.0,0.82496218]
[1641145141415,0.08956664,47588.0,47585.0,0.18]
[1641145142118,0.27756664,47588.0,47585.0,0.18]
[1641145142317,0.188,47588.0,47585.0,0.18]
[1641145142920,0.188,47588.0,47581.0,0.30282117]
[1641145143117,0.08956664,47587.0,47585.0,0.18]
[1641145143518,0.08956664,47587.0,47586.0,0.01194135]
[1641145143918,0.08956664,47587.0,47586.0,0.131353]
[1641145144118,0.27256664,47587.0,47586.0,0.131353]
[1641145146120,0.27556664,47587.0,47586.0,0.131353]
[1641145146821,1.31375701,47593.0,47586.0,0.202613]
[1641145147022,1.31375701,47593.0,47589.0,0.18]
[1641145147820,1.31375701,47593.0,47590.0,0.01194]
[1641145148020,1.31375701,47595.0,47592.0,0.18]
[1641145148220,1.31375701,47595.0,47594.0,0.18]
[1641145148621,1.31375701,47595.0,47592.0,0.0210115]
[1641145148822,1.31375701,47595.0,47594.0,0.18]
[1641145149021,0.14033567,47597.0,47594.0,0.18]
[1641145149022,1.31375701,47596.0,47594.0,0.18]
[1641145149921,1.31375701,47596.0,47595.0,0.18]
[1641145150122,1.31375701,47596.0,47595.0,1.01328216]
[1641145150321,1.31375701,47596.0,47595.0,0.83328216]
[1641145151122,0.14033567,47597.0,47595.0,0.53695956]
[1641145151823,0.14033567,47597.0,47595.0,0.35695956]
[1641145152224,0.14033567,47597.0,47595.0,0.54895956]
[1641145152724,0.14033567,47597.0,47595.0,0.192]
[1641145153325,0.14033567,47597.0,47595.0,0.372]
[1641145153529,0.14033567,47597.0,47595.0,0.18]
[1641145154127,0.14033567,47597.0,47595.0,0.192]
[1641145154330,0.14033567,47597.0,47595.0,0.54895956]
[1641145154526,0.14033567,47597.0,47595.0,0.72895956]
[1641145154928,0.14033567,47597.0,47595.0,0.54895956]
[1641145155530,0.14033567,47597.0,47595.0,0.35695956]
[1641145155930,0.14033567,47597.0,47596.0,0.18]
[1641145156233,0.14033567,47597.0,47596.0,0.09269]
[1641145157230,0.14033567,47597.0,47596.0,0.27269]
[1641145157533,0.14033567,47597.0,47596.0,0.09269]
[1641145157733,0.14033567,47597.0,47596.0,0.44964956]
[1641145158231,0.14033567,47597.0,47596.0,0.64164956]
[1641145159534,0.14033567,47597.0,47596.0,0.09269]
[1641145159933,0.14033567,47597.0,47595.0,0.35695956]
[1641145160335,0.14033567,47597.0,47596.0,0.192]
[1641145161536,0.14033567,47597.0,47595.0,0.35695956]
[1641145162136,0.22990031,47597.0,47595.0,0.191]
[1641145163138,0.08956464,47596.0,47595.0,0.191]
[1641145163536,0.08956464,47596.0,47594.0,0.35695956]
[1641145164338,0.08956464,47596.0,47594.0,0.54895956]
[1641145165638,0.08956464,47596.0,47594.0,0.35695956]
[1641145166239,0.08956464,47596.0,47594.0,0.54895956]
[1641145167237,0.08956464,47596.0,47594.0,0.192]
[1641145167439,0.08956464,47596.0,47594.0,0.5949326]
[1641145167838,0.08956464,47596.0,47595.0,0.02100945]
[1641145168040,0.08956464,47596.0,47595.0,0.09904945]
[1641145168239,0.39635165,47599.0,47595.0,1.20984345]
[1641145168440,0.39635165,47601.0,47598.0,0.18]
[1641145168641,0.39635165,47601.0,47600.0,0.18]
[1641145169245,0.39635165,47601.0,47600.0,0.2017325]
[1641145169442,0.39635165,47601.0,47600.0,0.48240384]
[1641145169641,1.43318946,47604.0,47600.0,0.48240384]
[1641145169841,2.9853427,47611.0,47603.0,0.18]
[1641145170041,1.43318946,47611.0,47608.0,0.18]
[1641145170243,1.43318946,47611.0,47608.0,0.23846]
[1641145171058,1.43318946,47611.0,47608.0,0.05846]
[1641145171761,1.57352513,47612.0,47608.0,0.05846]
[1641145172359,1.57352513,47612.0,47608.0,0.24846]
[1641145173360,1.43318946,47609.0,47608.0,0.24846]
[1641145173558,1.43318946,47609.0,47608.0,0.05846]
[1641145174261,1.43318946,47609.0,47608.0,0.25146]
[1641145175558,1.43318946,47609.0,47608.0,0.05846]
[1641145175757,1.43318946,47609.0,47604.0,0.35699712]
[1641145176360,0.14033567,47612.0,47604.0,0.54999712]
[1641145177360,1.31304591,47605.0,47604.0,0.54999712]
[1641145177561,1.31304591,47605.0,47604.0,0.35699712]
[1641145178260,1.31304591,47605.0,47604.0,0.194]
[1641145178461,1.43241372,47609.0,47604.0,0.194]
[1641145178462,1.31304591,47606.0,47604.0,0.194]
[1641145179468,1.31304591,47606.0,47605.0,0.35703568]
[1641145179667,1.31304591,47606.0,47605.0,0.42592568]
[1641145180069,1.31304591,47606.0,47605.0,0.24889]
[1641145180267,1.31304591,47607.0,47605.0,1.0378852]
[1641145180870,1.31304591,47607.0,47606.0,0.18]
[1641145181272,1.31304591,47609.0,47606.0,0.5949952]
[1641145182077,1.31304591,47609.0,47607.0,0.189794]
[1641145182276,1.31304591,47609.0,47608.0,0.02100426]
[1641145182474,1.31304591,47610.0,47608.0,0.37742508]
[1641145182675,1.31304591,47610.0,47609.0,0.18]
[1641145182874,1.31304591,47610.0,47609.0,0.19193609]
[1641145183278,1.31304591,47610.0,47609.0,0.01193609]
[1641145183476,1.31304591,47610.0,47609.0,0.03293642]
[1641145183676,0.08952804,47612.0,47609.0,0.35327209]
[1641145184276,0.08952804,47612.0,47609.0,0.539336]
[1641145184476,0.08952804,47612.0,47611.0,2.43651187]
[1641145184879,0.08952804,47614.0,47611.0,2.43651187]
[1641145185177,0.08952804,47614.0,47613.0,0.18]
[1641145185677,0.08952804,47615.0,47612.0,0.82978617]
[1641145185877,0.08952804,47615.0,47613.0,0.59270441]
[1641145186980,0.08952804,47615.0,47614.0,0.59270441]
[1641145187380,0.08952804,47615.0,47614.0,0.77270441]
[1641145187581,0.08952804,47615.0,47614.0,0.59270441]
[1641145187980,1.31304591,47617.0,47614.0,0.59270441]
[1641145188182,0.35733231,47617.0,47611.0,2.43651187]
[1641145188480,0.35733231,47617.0,47614.0,0.194]
[1641145188781,0.35733231,47617.0,47614.0,0.374]
[1641145189180,0.35733231,47617.0,47616.0,0.18]
[1641145189380,0.35733231,47618.0,47616.0,0.18]
[1641145189784,0.35733231,47618.0,47611.0,2.43651187]
[1641145189985,0.35733231,47618.0,47614.0,0.18]
[1641145190385,0.35733231,47619.0,47614.0,0.18]
[1641145191184,0.35733231,47619.0,47617.0,0.18]
[1641145191885,0.001,47618.0,47617.0,0.18]
[1641145192285,0.001,47618.0,47617.0,0.372]
[1641145192986,0.001,47618.0,47617.0,0.192]
[1641145193787,0.001,47618.0,47611.0,2.43651187]
[1641145193987,0.35733231,47619.0,47611.0,2.43651187]
[1641145194187,0.35733231,47618.0,47612.0,0.02100277]
[1641145194386,0.35733231,47618.0,47617.0,0.193]
[1641145194586,0.35833231,47618.0,47617.0,0.193]
[1641145195586,0.35833231,47618.0,47612.0,0.02100277]
[1641145195787,0.35733231,47618.0,47612.0,0.02100277]
[1641145196187,0.18,47619.0,47612.0,0.02100277]
[1641145196386,0.103,47618.0,47612.0,0.21300277]
[1641145196786,0.103,47618.0,47616.0,0.021001]
[1641145197590,0.35733231,47621.0,47616.0,0.021001]
[1641145198188,0.35733231,47622.0,47616.0,0.021001]
[1641145198387,0.35733231,47622.0,47616.0,0.211001]
[1641145199690,0.14033567,47620.0,47616.0,0.021001]
[1641145200392,0.14033567,47620.0,47616.0,0.213001]
[1641145201691,0.14033567,47620.0,47616.0,0.021001]
[1641145202392,0.14033567,47620.0,47616.0,0.213001]
[1641145204194,0.14033567,47620.0,47616.0,0.021001]
[1641145204393,0.14033567,47620.0,47616.0,0.212001]
[1641145205694,0.14033567,47620.0,47616.0,0.021001]
[1641145206295,0.14033567,47620.0,47616.0,0.213001]
[1641145207695,0.14033567,47620.0,47616.0,0.021001]
[1641145208099,0.14033567,47620.0,47619.0,0.35503366]
[1641145208697,0.32033567,47620.0,47619.0,0.35503366]
[1641145209103,1.75274939,47620.0,47618.0,0.35503366]
[1641145209299,1.57274939,47620.0,47618.0,0.35503366]
[1641145210297,1.57274939,47620.0,47618.0,0.54903366]
[1641145210997,1.57274939,47620.0,47618.0,0.194]
[1641145211597,1.57274939,47620.0,47617.0,0.35503366]
[1641145212217,1.43241372,47620.0,47617.0,0.53503366]
[1641145212517,1.43241372,47620.0,47619.0,0.02099898]
[1641145212717,1.43241372,47620.0,47619.0,0.09488298]
[1641145213920,1.43241372,47620.0,47619.0,0.23521865]
[1641145214122,1.43241372,47620.0,47619.0,1.33621865]
[1641145214321,1.37951372,47626.0,47619.0,1.54415037]
[1641145214521,1.37951372,47626.0,47624.0,0.18]
[1641145214921,1.37951372,47626.0,47625.0,0.02099528]
[1641145215321,2.43039791,47633.0,47625.0,0.02099528]
[1641145215725,0.32033567,47632.0,47625.0,0.02099528]
[1641145215921,0.18,47629.0,47625.0,0.02099528]
[1641145216121,0.001,47626.0,47625.0,0.02099528]
[1641145216322,0.18,47628.0,47625.0,0.187]
[1641145216522,0.18,47628.0,47626.0,0.35582451]
[1641145217924,0.14054569,47627.0,47625.0,0.187]
[1641145218125,0.14033567,47627.0,47622.0,0.35582451]
[1641145218327,0.14033567,47627.0,47626.0,0.182]
[1641145218925,0.14133567,47627.0,47626.0,0.182]
[1641145219727,0.14033567,47627.0,47621.0,0.35582451]
[1641145219928,0.14033567,47627.0,47622.0,0.35582451]
[1641145220728,1.43218694,47624.0,47622.0,0.35582451]
[1641145221437,1.43218694,47625.0,47623.0,0.35582451]
[1641145222329,1.43218694,47625.0,47623.0,0.54582451]
[1641145223030,1.61218694,47626.0,47624.0,0.35582451]
[1641145223231,0.001,47625.0,47624.0,0.35582451]
[1641145223532,1.43318694,47625.0,47624.0,0.35582451]
[1641145223732,1.52269888,47625.0,47623.0,0.19]
[1641145223933,1.52169888,47625.0,47622.0,0.35582451]
[1641145224433,1.52169888,47625.0,47623.0,0.192]
[1641145225132,0.08951194,47624.0,47623.0,0.192]
[1641145225744,0.08951194,47624.0,47622.0,0.35582451]
[1641145225933,1.43218694,47625.0,47623.0,0.35582451]
[1641145226936,0.08951194,47626.0,47624.0,0.35582451]
[1641145227135,0.001,47625.0,47624.0,0.35582451]
[1641145228537,0.001,47625.0,47624.0,0.54982451]
[1641145228742,0.09051194,47625.0,47624.0,0.54982451]
[1641145229737,0.09051194,47625.0,47624.0,0.35582451]
[1641145230337,0.09051194,47625.0,47624.0,0.54982451]
[1641145231637,0.08951194,47625.0,47624.0,0.35582451]
[1641145232437,0.08951194,47625.0,47624.0,0.55082451]
[1641145232640,0.09051194,47625.0,47624.0,0.55082451]
[1641145232840,0.001,47625.0,47624.0,0.57182173]
[1641145233042,0.181,47625.0,47624.0,0.57182173]
[1641145233240,0.181,47625.0,47624.0,0.55082451]
[1641145233442,0.27051194,47625.0,47624.0,0.55082451]
[1641145233642,0.27051194,47625.0,47624.0,0.35582451]
[1641145234446,1.70269888,47625.0,47621.0,0.59304085]
[1641145234644,0.18,47622.0,47621.0,0.59304085]
[1641145235643,1.61218694,47622.0,47621.0,0.59304085]
[1641145235842,1.61218694,47622.0,47618.0,0.59304085]
[1641145236043,0.32033567,47619.0,47618.0,0.59304085]
[1641145236242,0.41118567,47619.0,47618.0,0.59304085]
[1641145236646,0.41118567,47619.0,47616.0,0.59304085]
[1641145237244,0.23118567,47619.0,47616.0,0.59304085]
[1641145237845,0.08951194,47618.0,47616.0,0.59304085]
[1641145238446,0.27651194,47618.0,47615.0,0.59304085]
[1641145239249,0.14951194,47617.0,47615.0,0.59304085]
[1641145239446,0.26951194,47617.0,47615.0,0.59304085]
[1641145239749,0.08951194,47617.0,47615.0,0.59304085]
[1641145240348,0.27451194,47617.0,47615.0,0.69804085]
[1641145240950,0.08951194,47616.0,47615.0,0.69804085]
[1641145241151,0.08951194,47616.0,47615.0,0.51134085]
[1641145241350,0.08951194,47616.0,47604.0,1.4458398]
[1641145241549,0.08951194,47616.0,47604.0,0.02100617]
[1641145241550,0.18,47607.0,47604.0,0.02100617]
[1641145241753,0.25341,47607.0,47604.0,0.02100617]
[1641145241950,0.25341,47607.0,47605.0,0.01193563]
[1641145242151,0.14133567,47606.0,47605.0,0.01193563]
[1641145242751,0.14133567,47606.0,47604.0,0.02100617]
[1641145242752,0.23084761,47606.0,47604.0,0.02100617]
[1641145242952,0.001,47605.0,47604.0,0.02100617]
[1641145243553,0.09051194,47605.0,47604.0,0.03294226]
[1641145244152,0.09051194,47605.0,47604.0,0.01193609]
[1641145244356,0.27751194,47605.0,47604.0,0.01193609]
[1641145244552,0.27751194,47605.0,47599.0,0.01193609]
[1641145244753,0.27651194,47605.0,47604.0,0.01193609]
[1641145244954,0.27751194,47605.0,47600.0,0.13129881]
[1641145245154,0.27651194,47605.0,47598.0,1.76869537]
[1641145245354,0.45651194,47605.0,47601.0,0.01193618]
[1641145245555,0.45651194,47605.0,47601.0,0.13129796]
[1641145245766,0.08951194,47604.0,47601.0,0.11936178]
[1641145245967,0.08951194,47604.0,47602.0,0.13129796]
[1641145246369,0.27751194,47604.0,47603.0,0.01193618]
[1641145246567,0.27851194,47604.0,47603.0,0.01193618]
[1641145246970,0.27851194,47604.0,47599.0,0.01193618]
[1641145247170,0.188,47604.0,47599.0,0.01193618]
[1641145247368,0.188,47604.0,47600.0,0.11936309]
[1641145247567,0.08951194,47605.0,47600.0,0.11936309]
[1641145247767,0.08951194,47605.0,47601.0,0.01193618]
[1641145248170,0.08951194,47603.0,47602.0,0.11936309]
[1641145248568,0.08951194,47603.0,47602.0,0.13129927]
[1641145248768,0.08951194,47603.0,47602.0,0.01193618]
[1641145248968,0.08951194,47603.0,47602.0,0.13129927]
[1641145249168,0.27651194,47605.0,47602.0,0.13129927]
[1641145249370,0.27651194,47605.0,47602.0,0.11936309]
[1641145249671,0.08951194,47605.0,47602.0,0.11936309]
[1641145249869,0.08951194,47605.0,47603.0,0.01193616]
[1641145250170,0.08951194,47605.0,47603.0,0.13129925]
[1641145250369,0.08951194,47604.0,47603.0,0.13129925]
[1641145250668,0.08951194,47604.0,47603.0,0.11936309]
[1641145250868,0.08951194,47604.0,47601.0,0.02100762]
[1641145251274,0.08951194,47604.0,47598.0,1.42483363]
[1641145251469,0.08951194,47604.0,47602.0,0.11936251]
[1641145251869,0.08951194,47604.0,47599.0,0.11936251]
[1641145252274,0.27951194,47604.0,47599.0,0.11936251]
[1641145252470,0.27951194,47604.0,47598.0,0.11936251]
[1641145252671,0.27951194,47604.0,47600.0,0.11936251]
[1641145253072,0.27951194,47604.0,47598.0,0.11936251]
[1641145253672,0.08951194,47603.0,47598.0,0.11936251]
[1641145254273,0.19,47603.0,47598.0,0.11936251]
[1641145255775,0.08951194,47602.0,47598.0,0.11936251]
[1641145256375,0.27551194,47602.0,47598.0,0.11936251]
[1641145256578,0.27551194,47602.0,47601.0,0.02100761]
[1641145256979,0.27551194,47602.0,47601.0,0.14037012]
[1641145257380,0.27551194,47602.0,47601.0,0.02100761]
[1641145257577,0.08951194,47602.0,47601.0,0.14037012]
[1641145257777,0.14033567,47606.0,47601.0,0.14037012]
[1641145257978,0.14033567,47606.0,47601.0,0.02100761]
[1641145258378,0.32733567,47606.0,47601.0,0.20100761]
[1641145258578,0.32733567,47606.0,47601.0,0.02100761]
[1641145258779,0.08953548,47605.0,47601.0,0.02100761]
[1641145259379,0.32733567,47606.0,47601.0,0.20100761]
[1641145259579,0.14033567,47606.0,47602.0,0.11935763]
[1641145260281,0.32933567,47606.0,47602.0,0.11935763]
[1641145260880,0.32933567,47606.0,47601.0,0.37745282]
[1641145261682,0.32933567,47606.0,47601.0,0.02100761]
[1641145261683,0.14033567,47606.0,47601.0,0.02100761]
[1641145262284,0.32733567,47606.0,47600.0,0.35644521]
[1641145263184,0.32733567,47606.0,47599.0,0.97152892]
[1641145263384,0.32733567,47606.0,47599.0,0.37745356]
[1641145263585,0.14033567,47606.0,47599.0,0.37745356]
[1641145264084,0.14033567,47606.0,47599.0,0.02100835]
[1641145264284,0.32633567,47606.0,47599.0,0.02100835]
[1641145264686,0.32633567,47606.0,47600.0,0.11936301]
[1641145264985,0.32633567,47606.0,47599.0,0.02100835]
[1641145265688,0.14033567,47606.0,47599.0,0.02100835]
[1641145266085,0.14033567,47606.0,47600.0,0.01193628]
[1641145266286,0.32433567,47606.0,47600.0,0.08474628]
[1641145266487,0.32433567,47606.0,47602.0,0.2010073]
[1641145267287,0.32433567,47606.0,47603.0,0.01193628]
[1641145267488,0.32433567,47606.0,47603.0,0.13129064]
[1641145267689,0.14033567,47606.0,47603.0,0.13129064]
[1641145267888,0.14033567,47606.0,47603.0,0.01193628]
[1641145268288,0.33033567,47606.0,47604.0,0.01193628]
[1641145268888,0.33033567,47606.0,47603.0,0.01193628]
[1641145269089,0.33033567,47606.0,47605.0,0.01193628]
[1641145269489,0.33033567,47606.0,47604.0,0.01193628]
[1641145269790,0.14033567,47606.0,47603.0,0.01193628]
[1641145270189,0.14033567,47606.0,47605.0,0.01193628]
[1641145270390,0.33433567,47606.0,47604.0,0.01193628]
[1641145270691,0.33433567,47606.0,47603.0,0.01193628]
[1641145270889,0.33433567,47606.0,47602.0,0.0210073]
[1641145271292,0.33433567,47606.0,47604.0,0.01193582]
[1641145271489,0.33433567,47606.0,47603.0,0.01193582]
[1641145271689,0.33433567,47606.0,47602.0,0.0210073]
[1641145271891,0.33433567,47606.0,47604.0,0.01193596]
[1641145272189,0.33433567,47606.0,47603.0,0.01193596]
[1641145272489,0.32733567,47606.0,47602.0,0.0210073]
[1641145272689,0.32733567,47606.0,47604.0,0.01193596]
[1641145272991,0.32733567,47606.0,47603.0,0.01193596]
[1641145273192,0.32733567,47606.0,47602.0,0.37745251]
[1641145273591,0.14033567,47606.0,47603.0,0.01193608]
[1641145274293,0.32733567,47606.0,47603.0,0.01193608]
[1641145275794,0.14033567,47606.0,47601.0,0.35644521]
[1641145276193,0.14033567,47606.0,47602.0,0.01193631]
[1641145276393,0.32733567,47606.0,47602.0,0.01193631]
[1641145277696,0.14033567,47606.0,47602.0,0.01193631]
[1641145278399,0.32633567,47606.0,47602.0,0.01193631]
[1641145279295,0.0895371,47605.0,47602.0,0.01193631]
[1641145279695,0.0895371,47605.0,47601.0,0.01193631]
[1641145280395,0.2765371,47605.0,47602.0,0.11936282]
[1641145280797,0.2765371,47605.0,47603.0,0.01193631]
[1641145281196,0.2765371,47605.0,47602.0,0.11936282]
[1641145281400,0.0895371,47604.0,47602.0,0.11936282]